bitfinex-derivatives/quotes_ETHF0:USTF0_20260305
["timestamp","ask_amount","ask_price","bid_price","bid_amount"]
[1772724443675,0.57882503,2079.4,2078.0,0.48561688]
[1772724443877,0.58272003,2079.4,2077.7,40.8]
[1772724444082,0.58272003,2079.4,2077.8,0.49213407]
[1772724444579,0.58272003,2079.4,2078.0,0.49213407]
[1772724444776,0.57882503,2079.2,2078.0,0.49213407]
[1772724444979,0.57882503,2079.2,2078.0,0.49722527]
[1772724445175,0.57882503,2079.2,2078.2,0.49213407]
[1772724445574,0.57882503,2079.2,2078.7,0.88277967]
[1772724445776,0.57882503,2079.1,2078.0,0.0050912]
[1772724445974,0.57882503,2078.5,2077.1,1.40578057]
[1772724446177,0.57882503,2078.1,2076.8,0.49722527]
[1772724446582,0.57882503,2078.1,2077.2,0.88277967]
[1772724446776,0.57882503,2078.1,2076.8,0.49722527]
[1772724446979,0.57882503,2078.1,2076.2,0.49879582]
[1772724447180,0.57882503,2078.1,2076.6,0.49879582]
[1772724447682,0.2406,2077.8,2076.9,0.88277967]
[1772724447880,0.5460233,2077.7,2076.3,0.49879582]
[1772724448075,0.5460233,2077.7,2076.7,0.49879582]
[1772724448681,0.5460233,2077.7,2077.1,0.88277967]
[1772724448876,0.5460233,2077.5,2076.2,0.00433547]
[1772724449283,0.5460233,2077.5,2076.2,0.50927486]
[1772724449982,0.5460233,2077.5,2076.2,0.00433547]
[1772724451083,0.5460233,2077.5,2075.4,6.16647]
[1772724451084,0.5460233,2077.1,2075.6,0.51229898]
[1772724451289,0.5460233,2076.6,2074.9,0.51663445]
[1772724451586,0.5460233,2076.2,2074.7,0.51663445]
[1772724451883,0.5460233,2076.2,2074.8,0.51663445]
[1772724452084,0.5460233,2077.4,2075.2,0.51663445]
[1772724452285,0.5460233,2076.7,2075.2,0.51663445]
[1772724452682,0.5460233,2076.7,2075.4,0.51115745]
[1772724453079,0.5460233,2077.6,2075.4,0.51115745]
[1772724453279,0.5460233,2077.4,2075.4,0.51115745]
[1772724453585,0.5460233,2076.9,2075.5,9.405]
[1772724453888,0.5460233,2076.7,2075.0,0.51604266]
[1772724454090,0.5460233,2076.5,2075.0,0.51604266]
[1772724454585,0.5460233,2076.5,2074.8,0.5220646]
[1772724454890,0.5460233,2076.3,2074.8,0.00602194]
[1772724455382,0.5460233,2076.1,2074.8,0.00602194]
[1772724455583,0.5460233,2076.1,2074.0,9.49086098]
[1772724455584,0.5460233,2075.5,2074.0,0.08386098]
[1772724455783,0.5460233,2075.5,2074.0,0.52709084]
[1772724457087,0.5460233,2075.5,2074.0,0.53259046]
[1772724457794,0.5460233,2075.8,2074.2,0.53474172]
[1772724458792,0.5460233,2075.8,2074.2,0.56260778]
[1772724459092,0.5460233,2075.8,2074.0,9.39549962]
[1772724459093,0.5460233,2075.8,2074.0,0.00549962]
[1772724459281,0.5460233,2075.8,2074.0,0.5681074]
[1772724461291,0.5460233,2075.8,2074.2,0.52705696]
[1772724461687,5.92402,2076.0,2074.0,0.00549962]
[1772724461688,6.4714433,2075.5,2074.0,0.00549962]
[1772724461883,0.5460233,2075.4,2074.0,0.00549962]
[1772724462090,0.5460233,2075.4,2074.0,0.53255658]
[1772724462291,0.5460233,2076.0,2074.1,0.52705696]
[1772724462493,0.5460233,2076.0,2074.3,0.52705696]
[1772724462991,0.5460233,2076.0,2074.4,0.50838081]
[1772724465389,0.5460233,2076.0,2074.5,0.50185368]
[1772724466496,0.5460233,2076.0,2074.9,0.50185368]
[1772724466894,0.00575078,2076.1,2074.9,0.50185368]
[1772724467193,0.55177408,2076.1,2074.9,0.50185368]
[1772724467693,0.55177408,2076.1,2074.5,0.50217337]
[1772724468498,0.5460233,2075.7,2074.2,0.50217337]
[1772724468994,0.58728442,2075.3,2074.0,0.00549962]
[1772724469394,0.58728442,2075.3,2074.0,0.50484397]
[1772724470595,0.58728442,2075.3,2074.1,0.49928642]
[1772724470895,0.58728442,2075.3,2074.2,0.50285256]
[1772724471103,0.58728442,2075.9,2074.3,0.50285256]
[1772724471302,0.58728442,2075.7,2074.1,0.50285256]
[1772724471502,0.58728442,2075.7,2074.0,0.00549962]
[1772724471503,0.58728442,2075.5,2074.0,0.00549962]
[1772724471702,0.58728442,2075.3,2074.0,0.00549962]
[1772724471904,0.58728442,2075.3,2074.0,0.50835218]
[1772724474007,0.58728442,2075.1,2074.1,0.50289799]
[1772724475508,0.58728442,2075.3,2074.1,0.50289799]
[1772724475708,1.2929475,2075.2,2074.1,0.50289799]
[1772724475908,0.70714291,2075.1,2074.1,0.50289799]
[1772724476210,1.29442733,2075.0,2074.2,0.49177787]
[1772724476406,0.70714291,2074.9,2074.2,0.49177787]
[1772724476807,0.58728442,2075.3,2074.2,0.49177787]
[1772724478808,0.58728442,2075.3,2074.0,0.49494801]
[1772724479003,0.58728442,2075.3,2074.0,0.00549962]
[1772724479203,0.58728442,2075.1,2074.0,0.00549962]
[1772724479910,0.58728442,2074.9,2074.0,0.00549962]
[1772724480302,0.58728442,2074.9,2074.0,0.49494801]
[1772724480707,0.58728442,2074.9,2074.0,0.00549962]
[1772724482309,0.58728442,2074.9,2074.0,0.50226081]
[1772724482508,0.58728442,2074.9,2074.0,0.00549962]
[1772724482712,0.58728442,2074.7,2074.0,0.00549962]
[1772724483412,0.58728442,2075.0,2074.0,0.51619913]
[1772724483613,5.523186,2074.9,2074.0,0.51619913]
[1772724483812,0.24092,2075.1,2074.0,0.51619913]
[1772724483813,0.58728442,2074.8,2074.0,0.51619913]
[1772724484108,0.58728442,2075.2,2074.1,0.51069951]
[1772724484307,0.58728442,2075.5,2074.3,0.51069951]
[1772724484511,0.58728442,2076.0,2074.7,0.51069951]
[1772724484707,0.58728442,2075.8,2074.7,0.51069951]
[1772724486106,0.58728442,2075.4,2074.1,0.5518813]
[1772724486711,6.89482018,2075.7,2074.1,0.5518813]
[1772724486712,0.58728442,2075.2,2074.1,0.5518813]
[1772724486921,0.58728442,2074.8,2074.0,0.00549962]
[1772724487206,0.58728442,2074.4,2073.1,0.7930213]
[1772724487406,0.58728442,2074.4,2073.4,0.5518813]
[1772724488112,0.00342568,2074.4,2073.4,0.55757443]
[1772724488413,0.58728442,2074.7,2073.6,0.5518813]
[1772724488712,0.62083513,2074.6,2073.8,0.5518813]
[1772724488908,0.58728442,2075.3,2073.7,0.5518813]
[1772724489115,0.58728442,2075.3,2073.9,0.5518813]
[1772724489512,0.59227015,2075.3,2074.1,0.5518813]
[1772724490214,0.59227015,2075.3,2073.5,0.24109]
[1772724490409,0.58728442,2075.1,2073.7,0.5518813]
[1772724491411,0.58728442,2075.1,2073.9,0.5518813]
[1772724492113,0.58728442,2075.1,2073.8,0.24106]
[1772724492506,0.58728442,2075.1,2073.8,0.7929413]
[1772724492711,0.58728442,2074.9,2073.9,0.5518813]
[1772724493307,0.58728442,2075.2,2074.3,0.5518813]
[1772724493915,0.58728442,2075.2,2074.4,0.5518813]
[1772724494221,0.00498573,2075.3,2074.4,0.5518813]
[1772724495117,0.58728442,2076.0,2074.7,0.5518813]
[1772724495413,0.58728442,2075.8,2074.7,41.3518813]
[1772724495622,0.58728442,2075.8,2074.7,0.5518813]
[1772724495815,0.58728442,2075.4,2074.0,0.5518813]
[1772724496116,0.58728442,2075.2,2074.1,0.5518813]
[1772724496421,0.58728442,2075.0,2073.9,0.5518813]
[1772724498414,0.58728442,2075.0,2074.0,0.7929213]
[1772724498613,0.00499876,2075.4,2074.4,0.5518813]
[1772724498818,0.00499876,2075.4,2074.6,0.5518813]
[1772724499216,0.5717615,2075.8,2074.6,0.5518813]
[1772724499621,0.5717615,2075.8,2074.8,0.56449466]
[1772724500024,0.5717615,2075.8,2074.6,0.56449466]
[1772724500315,0.5717615,2075.6,2074.3,0.56449466]
[1772724500520,0.5717615,2075.6,2074.4,0.56449466]
[1772724500825,0.53310869,2075.5,2074.4,0.56449466]
[1772724501017,0.57562274,2075.8,2074.4,0.56449466]
[1772724501216,0.5717615,2075.6,2074.4,0.56449466]
[1772724502023,0.5717615,2075.4,2074.5,9.325]
[1772724502416,0.5717615,2075.2,2074.4,0.56449466]
[1772724502617,0.5717615,2075.7,2074.4,0.56449466]
[1772724502922,0.5717615,2075.7,2073.9,13.47907199]
[1772724502923,0.5717615,2075.0,2073.8,0.56214858]
[1772724503122,0.5717615,2074.8,2073.8,0.56214858]
[1772724503919,0.5717615,2075.4,2074.0,0.56214858]
[1772724504128,0.5717615,2075.2,2074.0,0.56214858]
[1772724504424,0.5717615,2075.0,2074.0,0.56214858]
[1772724505426,0.5717615,2075.0,2074.0,9.89214858]
[1772724505627,0.5717615,2074.8,2073.7,0.56390615]
[1772724505828,0.5717615,2074.8,2073.8,9.33]
[1772724506424,0.5717615,2074.6,2073.4,0.00569313]
[1772724506631,0.5717615,2074.4,2073.4,0.56959928]
[1772724508120,0.59565421,2074.7,2073.7,0.54825013]
[1772724508825,3.82715406,2075.3,2074.3,0.54825013]
[1772724508826,0.59565421,2075.3,2074.3,0.54825013]
[1772724509025,0.59565421,2075.3,2074.5,0.54825013]
[1772724509227,0.59565421,2075.3,2073.8,5.93022]
[1772724509228,0.59565421,2075.3,2074.1,0.54825013]
[1772724509525,0.59565421,2075.3,2073.8,3.06766612]
[1772724509526,0.59565421,2075.3,2074.2,0.54825013]
[1772724509830,0.59565421,2075.1,2074.2,9.88425013]
[1772724511531,0.59565421,2075.1,2073.9,0.54825013]
[1772724511930,0.59565421,2075.1,2074.0,9.34]
[1772724512329,0.59565421,2075.1,2074.1,0.54825013]
[1772724512732,0.59565421,2075.1,2074.0,9.34]
[1772724513027,0.59565421,2075.1,2073.8,0.54825013]
[1772724513224,0.59565421,2075.1,2074.0,9.342]
[1772724513633,0.59565421,2075.1,2074.1,0.54825013]
[1772724514529,0.59565421,2074.9,2073.8,0.54825013]
[1772724514730,0.59565421,2074.7,2073.5,0.54825013]
[1772724514929,0.59565421,2074.7,2073.5,9.89125013]
[1772724515326,0.24095,2074.8,2073.6,0.54825013]
[1772724515525,0.59565421,2074.6,2073.6,0.24108]
[1772724515724,0.59565421,2074.6,2073.4,0.00569313]
[1772724515929,0.59565421,2074.2,2073.4,0.00569313]
[1772724516123,0.60160571,2074.2,2073.4,0.55394326]
[1772724516730,0.59565421,2075.3,2073.7,0.54825013]
[1772724516938,0.59565421,2075.1,2073.8,0.54825013]
[1772724517137,0.59565421,2074.9,2073.6,9.89525013]
[1772724517341,0.52612636,2074.8,2073.7,0.54825013]
[1772724517634,0.00441246,2074.8,2073.9,0.54825013]
[1772724517828,0.59565421,2075.2,2074.1,0.54825013]
[1772724518029,0.59565421,2075.5,2074.3,0.54825013]
[1772724518833,0.59565421,2075.3,2074.3,0.54825013]
[1772724519027,0.59565421,2075.3,2074.1,0.54825013]
[1772724519230,0.59565421,2075.1,2074.1,0.54825013]
[1772724519737,0.59565421,2075.4,2074.1,0.54825013]
[1772724523638,0.59565421,2075.2,2074.1,0.54825013]
[1772724524233,0.59565421,2075.2,2073.5,0.54825013]
[1772724524234,0.59565421,2074.6,2073.5,0.54825013]
[1772724525242,0.59565421,2074.4,2073.5,0.54825013]
[1772724526344,0.59565421,2074.4,2073.4,0.00569313]
[1772724526843,0.59565421,2074.2,2073.4,0.00569313]
[1772724527145,0.59565421,2074.9,2073.8,0.54825013]
[1772724527339,0.59565421,2074.9,2073.6,0.54825013]
[1772724527541,0.59565421,2074.9,2073.4,7.55486512]
[1772724527542,0.59565421,2074.7,2073.5,0.54825013]
[1772724528942,0.54395825,2074.5,2073.5,0.54825013]
[1772724529138,1.06873908,2074.4,2073.4,0.00569313]
[1772724529342,0.54395825,2074.0,2073.0,0.59494831]
[1772724529542,0.54395825,2074.0,2072.8,0.59494831]
[1772724530442,0.54395825,2073.8,2072.8,0.00430498]
[1772724530644,0.54395825,2073.6,2072.4,0.59494831]
[1772724531244,0.54395825,2073.6,2072.4,0.59925329]
[1772724531439,0.54395825,2073.6,2072.4,0.59494831]
[1772724531648,0.54395825,2073.6,2072.5,0.59494831]
[1772724531851,0.54395825,2073.6,2072.7,0.59925329]
[1772724532043,0.54395825,2073.6,2072.7,0.59494831]
[1772724532238,0.00350162,2074.0,2072.7,0.59494831]
[1772724532239,0.00350162,2074.0,2073.5,0.59494831]
[1772724532444,0.00350162,2074.0,2073.1,0.59494831]
[1772724532650,0.54745987,2074.0,2073.1,0.59494831]
[1772724534140,0.54745987,2074.0,2072.6,0.59494831]
[1772724534344,0.54745987,2074.0,2072.7,0.00430498]
[1772724534548,0.54745987,2074.0,2072.8,0.59494831]
[1772724534844,0.54395825,2073.9,2072.8,0.59494831]
[1772724535051,0.54395825,2073.9,2072.5,0.59494831]
[1772724535448,0.54395825,2073.7,2072.5,0.59494831]
[1772724535650,0.54395825,2073.3,2072.5,0.59494831]
[1772724535845,0.54395825,2073.3,2072.4,0.00370615]
[1772724536949,0.54395825,2073.3,2072.4,0.59865446]
[1772724537144,0.54395825,2073.3,2072.6,0.59494831]
[1772724537545,0.54395825,2073.3,2072.7,0.59925329]
[1772724537746,0.54395825,2073.8,2072.7,0.59494831]
[1772724538142,0.54395825,2073.8,2072.9,0.59494831]
[1772724538353,0.24105,2073.9,2072.4,9.57392615]
[1772724538354,0.54745987,2074.0,2073.1,0.59494831]
[1772724538848,0.54745987,2074.0,2072.6,0.59494831]
[1772724539047,0.54745987,2074.0,2072.8,0.59494831]
[1772724539649,0.54745987,2074.0,2073.0,0.59494831]
[1772724539849,0.54395825,2073.9,2073.0,0.59494831]
[1772724540148,0.54395825,2073.9,2072.8,0.59494831]
[1772724540648,0.54395825,2073.7,2072.8,0.59494831]
[1772724541248,0.00350162,2074.0,2072.8,0.59494831]
[1772724541448,0.54395825,2073.9,2073.0,0.59494831]
[1772724542149,0.00350162,2074.0,2073.1,0.59494831]
[1772724542549,0.00350162,2074.0,2073.3,0.59494831]
[1772724542851,0.54745987,2074.0,2073.3,0.59494831]
[1772724543051,0.54745987,2074.0,2073.4,0.00430498]
[1772724543448,0.54395825,2074.8,2073.9,0.59925329]
[1772724543650,0.54395825,2074.8,2073.9,0.59494831]
[1772724543951,0.54395825,2075.2,2074.1,0.59925329]
[1772724544152,0.54395825,2075.2,2074.1,0.59494831]
[1772724544351,0.54395825,2075.0,2074.1,0.00458504]
[1772724544754,0.54395825,2074.8,2074.1,0.00458504]
[1772724544947,0.54395825,2074.8,2073.7,0.59494831]
[1772724545344,0.54395825,2074.8,2073.9,0.59494831]
[1772724545946,0.54395825,2074.8,2073.9,0.60091739]
[1772724546152,0.54395825,2074.8,2073.9,0.00596908]
[1772724546547,0.54395825,2074.8,2073.9,0.60091739]
[1772724546745,0.00485531,2075.2,2073.9,0.00596908]
[1772724546746,0.54395825,2074.6,2073.9,0.00596908]
[1772724547151,0.54395825,2074.6,2073.3,0.59494831]
[1772724547554,0.54395825,2074.9,2073.5,0.59494831]
[1772724548051,0.54395825,2074.9,2073.7,0.59494831]
[1772724548354,0.54881356,2075.2,2074.1,0.59494831]
[1772724548550,0.54395825,2075.7,2074.5,0.59494831]
[1772724549149,0.54395825,2075.5,2074.3,0.59494831]
[1772724549354,0.54395825,2075.5,2074.1,0.59494831]
[1772724549546,0.5474261,2075.5,2074.1,0.59494831]
[1772724549750,0.54395825,2075.3,2074.1,0.59494831]
[1772724549954,0.5474261,2075.5,2074.5,0.59494831]
[1772724550155,0.5474261,2075.5,2074.2,0.59494831]
[1772724551054,0.5474261,2075.5,2074.4,0.59494831]
[1772724551451,0.5474261,2075.5,2074.4,0.59925329]
[1772724551858,0.54395825,2075.2,2073.9,0.59494831]
[1772724552254,0.54395825,2075.2,2074.1,0.59494831]
[1772724552654,0.54395825,2075.2,2074.3,0.59494831]
[1772724553255,0.54395825,2075.2,2074.5,0.59925329]
[1772724553455,0.54395825,2075.2,2074.5,0.59494831]
[1772724553655,0.54395825,2075.2,2074.6,0.59925329]
[1772724553854,0.54395825,2075.2,2074.6,0.59494831]
[1772724554055,0.54395825,2075.4,2074.6,0.59494831]
[1772724554362,0.00346785,2075.5,2074.7,0.59925329]
[1772724554661,0.00346785,2075.5,2074.7,0.59494831]
[1772724554857,0.00346785,2075.5,2075.1,0.59925329]
[1772724555161,0.54395825,2075.8,2075.1,0.59945274]
[1772724555355,0.54395825,2075.8,2075.2,0.00430498]
[1772724555559,0.54395825,2075.8,2074.2,0.59494831]
[1772724555760,0.54395825,2075.6,2074.4,0.59494831]
[1772724556057,0.54395825,2075.4,2074.4,0.59494831]
[1772724556656,0.54851329,2075.4,2074.4,0.60017366]
[1772724559764,0.00455504,2075.4,2074.4,0.60017366]
[1772724560260,0.00455504,2075.4,2074.4,0.84116366]
[1772724560558,0.5681157,2075.8,2074.5,0.59651054]
[1772724560762,0.5681157,2075.8,2074.7,0.59651054]
[1772724560961,0.24086,2075.5,2074.5,0.59651054]
[1772724561160,0.5681157,2075.4,2074.5,0.59651054]
[1772724561563,0.57369542,2075.4,2074.5,0.59651054]
[1772724561764,0.00557972,2075.4,2074.5,0.59651054]
[1772724563563,0.24082,2076.0,2074.7,0.59651054]
[1772724563768,0.5681157,2076.1,2074.9,0.59651054]
[1772724563967,0.5681157,2076.1,2075.0,0.59651054]
[1772724564163,0.5681157,2075.8,2074.7,0.59651054]
[1772724564667,0.57290364,2075.8,2074.7,0.59651054]
[1772724565572,0.5681157,2075.6,2074.7,0.59651054]
[1772724566565,0.57290364,2075.8,2074.7,0.59651054]
[1772724566771,0.00478794,2075.8,2074.8,0.58175771]
[1772724567171,0.58254586,2075.8,2074.9,9.87175771]
[1772724567372,0.58254586,2075.8,2074.9,0.58175771]
[1772724568276,0.57775792,2075.5,2074.4,0.58698306]
[1772724568676,5.92709,2075.0,2073.4,7.54917199]
[1772724568881,0.57775792,2074.7,2073.5,0.58175771]
[1772724569079,0.57775792,2074.3,2073.5,0.58175771]
[1772724569282,0.57775792,2074.3,2073.2,0.58175771]
[1772724569783,0.58276236,2074.3,2073.2,0.58731059]
[1772724570481,0.00500444,2074.3,2073.2,0.58731059]
[1772724570977,0.57775792,2075.3,2073.8,0.58175771]
[1772724571178,0.57775792,2075.3,2074.0,0.58175771]
[1772724571382,0.57775792,2075.1,2074.0,0.58175771]
[1772724571974,0.58215733,2075.1,2074.0,0.58175771]
[1772724572681,0.57775792,2074.9,2073.5,0.58175771]
[1772724572880,0.57775792,2074.7,2073.5,0.58175771]
[1772724573185,0.57775792,2074.5,2073.5,0.58175771]
[1772724574486,0.57775792,2074.5,2073.6,0.58175771]
[1772724577893,0.57775792,2074.7,2073.6,0.58175771]
[1772724579581,0.57775792,2075.0,2073.8,0.58175771]
[1772724579889,1.09984876,2074.9,2073.8,0.58175771]
[1772724580084,0.57775792,2074.9,2073.8,0.58175771]
[1772724580689,1.0999647,2074.8,2073.3,0.58175771]
[1772724580888,5.93099941,2075.1,2073.2,0.24668288]
[1772724580889,0.57775792,2074.4,2073.6,0.58175771]
[1772724581386,0.57775792,2074.7,2073.6,0.58175771]
[1772724581588,0.57775792,2074.5,2073.6,0.58175771]
[1772724581788,0.57775792,2074.3,2073.3,0.58175771]
[1772724581988,0.57775792,2074.1,2073.3,0.58175771]
[1772724584385,0.57775792,2074.3,2073.3,0.58175771]
[1772724584589,0.57775792,2074.6,2073.3,0.58175771]
[1772724584987,0.57775792,2074.2,2073.3,0.58175771]
[1772724587692,0.57775792,2074.5,2073.3,0.58175771]
[1772724588287,0.57775792,2074.3,2073.3,0.58175771]
[1772724588787,0.55012962,2074.1,2073.3,0.58175771]
[1772724589292,0.55012962,2074.5,2073.3,0.58175771]
[1772724589884,0.55012962,2074.3,2073.3,0.58175771]
[1772724591893,6.3,2074.9,2073.4,0.54893744]
[1772724591894,0.55012962,2074.9,2073.4,0.54893744]
[1772724592088,0.55012962,2074.7,2073.4,0.54893744]
[1772724592592,0.55012962,2074.5,2073.4,0.54893744]
[1772724592791,0.55012962,2074.1,2073.3,0.54893744]
[1772724592993,0.55012962,2073.9,2073.3,0.54893744]
[1772724593184,0.55012962,2074.2,2073.3,0.54893744]
[1772724593590,0.79111962,2074.5,2073.3,0.54893744]
[1772724593789,0.55012962,2074.4,2073.3,0.54893744]
[1772724593985,0.55012962,2074.2,2073.3,0.54893744]
[1772724594395,0.55012962,2074.7,2073.3,0.54893744]
[1772724594790,0.55012962,2074.7,2073.5,0.54893744]
[1772724595297,0.55012962,2074.5,2073.5,0.54893744]
[1772724595894,0.55012962,2073.9,2073.3,0.54893744]
[1772724596597,0.55012962,2073.9,2073.2,0.55449032]
[1772724596796,0.24099,2074.5,2073.2,0.55449032]
[1772724596993,0.55012962,2074.3,2073.2,0.55449032]
[1772724597191,0.55012962,2074.1,2073.2,0.55449032]
[1772724597786,0.55012962,2074.4,2073.2,0.55449032]
[1772724598190,0.55012962,2074.2,2073.2,0.55449032]
[1772724598797,0.79111962,2074.5,2073.2,0.55449032]
[1772724598999,0.52341853,2074.4,2073.2,0.55449032]
[1772724599196,0.79111962,2074.5,2073.2,0.55449032]
[1772724599398,1.07346364,2074.4,2073.2,0.55449032]
[1772724599599,0.55012962,2074.3,2073.2,0.65449032]
[1772724599896,0.24099,2074.5,2073.2,0.65449032]
[1772724600097,0.24099,2074.5,2073.4,0.54893744]
[1772724600098,0.55012962,2074.5,2073.4,0.54893744]
[1772724600298,0.55012962,2074.8,2073.6,0.54893744]
[1772724600597,0.52320807,2074.7,2073.6,0.54893744]
[1772724600797,0.55452903,2075.1,2074.0,0.54893744]
[1772724600993,0.55012962,2074.7,2073.5,0.54893744]
[1772724601295,0.00439941,2075.1,2073.9,0.54893744]
[1772724601495,0.55012962,2075.6,2074.5,0.54893744]
[1772724601893,5.7661482,2076.1,2074.5,0.54893744]
[1772724601894,0.55012962,2075.5,2074.5,0.54893744]
[1772724602301,0.55012962,2075.5,2074.4,41.04099]
[1772724602302,0.55012962,2075.9,2074.6,0.54893744]
[1772724602601,0.55012962,2075.7,2074.6,0.54893744]
[1772724602802,0.55012962,2075.5,2074.3,0.54893744]
[1772724602997,0.76409175,2075.6,2074.3,0.54893744]
[1772724602998,0.55012962,2075.1,2074.3,0.54893744]
[1772724603196,0.55012962,2074.9,2074.0,0.54893744]
[1772724604093,0.55012962,2074.9,2073.8,0.54893744]
[1772724604299,0.55012962,2074.7,2073.8,0.54893744]
[1772724604689,0.55012962,2075.1,2073.8,0.54893744]
[1772724604897,0.55012962,2074.9,2073.6,9.82193744]
[1772724605100,0.55012962,2074.7,2073.6,0.54893744]
[1772724605300,0.55012962,2074.5,2073.6,0.54893744]
[1772724605695,0.24095,2074.8,2073.6,0.54893744]
[1772724605696,1.07293101,2074.4,2073.6,0.54893744]
[1772724605892,0.55353578,2074.4,2073.6,0.54893744]
[1772724606500,0.00340616,2074.4,2073.6,0.54893744]
[1772724607203,0.55353578,2074.4,2073.6,0.54893744]
[1772724608999,0.55012962,2074.1,2073.2,0.65449032]
[1772724609199,0.00340616,2074.4,2073.3,10.06204744]
[1772724609400,0.00340616,2074.4,2073.6,0.54893744]
[1772724609701,3.93118659,2075.1,2073.9,0.54893744]
[1772724609702,0.55012962,2075.1,2073.9,0.54893744]
[1772724609901,0.55012962,2074.9,2073.9,0.54893744]
[1772724610096,0.55012962,2074.9,2074.1,0.54893744]
[1772724610298,0.55012962,2075.2,2074.2,0.54893744]
[1772724610494,0.55012962,2075.5,2074.5,0.54893744]
[1772724610699,1.07364991,2075.4,2074.5,0.54893744]
[1772724610899,0.55012962,2075.4,2074.5,0.54893744]
[1772724611302,0.55012962,2075.1,2074.2,0.54893744]
[1772724611503,0.7638328,2075.0,2074.2,0.54893744]
[1772724611704,0.55012962,2075.0,2074.2,0.54893744]
[1772724611998,0.55012962,2075.0,2074.0,0.54893744]
[1772724612404,0.55012962,2075.0,2073.5,0.24109]
[1772724612405,0.55012962,2074.8,2073.7,9.81993744]
[1772724612606,0.55012962,2074.8,2073.8,0.54893744]
[1772724613299,0.55012962,2074.2,2073.2,0.65449032]
[1772724613501,0.55012962,2074.0,2073.2,0.65449032]
[1772724613700,0.55012962,2073.8,2073.2,0.10555288]
[1772724613906,0.55012962,2073.8,2072.2,9.89236262]
[1772724613907,0.55012962,2073.8,2072.6,0.54893744]
[1772724614102,0.55012962,2073.6,2072.6,0.54893744]
[1772724614402,0.55012962,2073.4,2072.1,0.54893744]
[1772724614702,0.55012962,2073.4,2072.3,0.54893744]
[1772724615101,0.55012962,2073.4,2072.1,0.00430579]
[1772724615102,0.55012962,2073.3,2072.1,0.00430579]
[1772724615405,0.45012962,2073.1,2072.1,0.55324323]
[1772724615998,0.30920956,2073.5,2072.1,0.55324323]
[1772724616202,0.55012962,2073.9,2072.1,0.55324323]
[1772724616203,0.55012962,2073.9,2072.7,0.54893744]
[1772724616403,0.55012962,2073.7,2072.7,0.54893744]
[1772724616698,0.55012962,2073.6,2072.5,0.54893744]
[1772724616899,0.55012962,2073.4,2072.5,0.54893744]
[1772724617304,0.55012962,2073.9,2072.5,0.54893744]
[1772724617599,0.55012962,2073.7,2072.7,0.54893744]
[1772724618007,0.55012962,2073.5,2072.2,0.54893744]
[1772724618208,0.55012962,2073.5,2072.1,0.00430579]
[1772724618209,0.55012962,2073.1,2072.1,0.00430579]
[1772724618711,0.55012962,2073.1,2072.1,0.55324323]
[1772724619203,0.55012962,2073.1,2072.1,0.00430579]
[1772724620006,0.55012962,2073.1,2072.1,0.57765143]
[1772724620508,0.59453641,2073.7,2072.7,0.57334564]
[1772724620706,0.59453641,2073.7,2072.3,0.57334564]
[1772724620906,0.59453641,2073.7,2072.4,0.57334564]
[1772724621313,0.59929066,2074.0,2073.1,0.57334564]
[1772724621615,0.59929066,2074.0,2072.8,0.57334564]
[1772724621812,0.59453641,2073.4,2072.2,0.57334564]
[1772724622008,0.59453641,2073.7,2072.4,0.57334564]
[1772724622204,0.59453641,2073.7,2072.7,0.57334564]
[1772724622410,0.59929066,2074.0,2072.7,0.57334564]
[1772724622810,0.24105,2073.9,2072.7,0.57334564]
[1772724623010,0.59453641,2073.6,2072.5,0.57334564]
[1772724623211,0.59453641,2073.4,2072.2,0.57334564]
[1772724625110,0.59453641,2073.9,2072.6,0.57334564]
[1772724625311,0.59453641,2073.9,2073.0,0.57334564]
[1772724625516,0.59453641,2073.9,2072.8,0.57334564]
[1772724625817,0.59453641,2073.9,2073.0,0.57334564]
[1772724626020,0.00475425,2074.0,2073.3,0.57334564]
[1772724626320,0.59453641,2074.5,2073.6,0.57334564]
[1772724626714,0.54764053,2075.0,2073.6,0.57334564]
[1772724627111,0.54764053,2075.0,2073.9,0.59657623]
[1772724627312,0.00576748,2075.0,2074.2,0.59657623]
[1772724627512,0.00576748,2075.0,2073.9,0.59657623]
[1772724627513,0.55340801,2075.0,2073.9,0.59657623]
[1772724628021,0.54764053,2074.6,2073.6,0.6014114]
[1772724629717,0.54764053,2074.9,2073.6,0.6014114]
[1772724630115,0.54764053,2074.9,2073.6,0.00483517]
[1772724630116,5.92774,2074.7,2073.6,0.00483517]
[1772724630312,0.54764053,2074.2,2073.6,5.17e-06]
[1772724630519,0.54764053,2074.0,2072.8,0.59657623]
[1772724631520,0.54764053,2074.0,2072.8,0.60021608]
[1772724632724,0.24103,2074.1,2072.8,0.60021608]
[1772724632725,0.54764053,2073.8,2072.8,0.00363985]
[1772724633017,0.54764053,2073.8,2072.8,0.60021608]
[1772724633822,0.54764053,2074.4,2072.9,0.59657623]
[1772724634018,0.54764053,2074.2,2072.9,0.59657623]
[1772724634622,0.54764053,2074.0,2072.9,0.59657623]
[1772724635215,0.54764053,2073.8,2072.8,0.00363985]
[1772724635425,0.54764053,2074.3,2072.8,0.60021608]
[1772724635630,0.54764053,2074.1,2072.8,0.60021608]
[1772724636226,0.54764053,2073.9,2072.8,0.60021608]
[1772724636715,0.54764053,2073.7,2072.8,0.60021608]
[1772724637523,0.54764053,2073.9,2072.8,0.60021608]
[1772724638524,0.54764053,2074.2,2072.8,0.60021608]
[1772724639727,0.54764053,2074.0,2073.1,0.59657623]
[1772724640224,0.54764053,2073.4,2072.8,0.00363985]
[1772724640421,0.55382871,2073.4,2072.8,0.00363985]
[1772724640830,0.00618818,2073.4,2072.8,0.60021608]
[1772724641329,0.55382871,2073.4,2072.8,0.00363985]
[1772724642429,0.00618818,2073.4,2072.8,0.60021608]
[1772724644430,0.55382871,2073.4,2072.8,0.60021608]
[1772724644629,0.54764053,2073.9,2072.9,0.59657623]
[1772724645329,0.24111,2073.4,2072.2,0.59657623]
[1772724645534,0.24115,2073.1,2072.2,0.59657623]
[1772724646029,0.54764053,2072.8,2071.9,0.59657623]
[1772724646425,0.54764053,2072.6,2071.9,0.00380633]
[1772724646937,0.54764053,2072.4,2071.7,0.88374792]
[1772724647425,0.78892053,2071.9,2071.0,0.59657623]
[1772724647628,0.54764053,2070.9,2069.1,7.54917199]
[1772724647927,6.73020053,2070.1,2069.1,0.00408433]
[1772724648126,0.54764053,2069.6,2068.7,0.59657623]
[1772724648329,0.54764053,2069.6,2068.3,0.59657623]
[1772724648828,0.54764053,2070.5,2068.5,0.59657623]
[1772724649028,0.54764053,2070.5,2068.5,0.6023811]
[1772724649229,0.5868401,2070.8,2069.1,0.58482889]
[1772724649423,0.5868401,2070.8,2069.3,0.58482889]
[1772724649628,0.5868401,2070.8,2069.5,0.58482889]
[1772724650432,0.5868401,2070.8,2069.6,0.58482889]
[1772724650934,0.5868401,2070.8,2069.8,0.58482889]
[1772724651536,0.5868401,2070.8,2069.6,9.214]
[1772724651736,0.5868401,2070.8,2069.6,0.58482889]
[1772724652332,0.5868401,2070.5,2069.1,0.58482889]
[1772724652734,0.5868401,2070.3,2068.5,0.59063376]
[1772724652938,0.5868401,2070.3,2068.9,0.58482889]
[1772724653234,0.5868401,2070.3,2069.0,0.58482889]